fUST/lending_fUST_20260509
["ID","MTS","AMOUNT","RATE_DAILY","PERIOD"]
[421907550,1778321457000,-500.0,0.00013972,2]
[421907541,1778321457000,-500.0,0.00013972,2]
[421907542,1778321457000,-826.97,0.00013972,2]
[421907539,1778321457000,-500.0,0.00013972,2]
[421907546,1778321457000,-813.64,0.00013972,2]
[421907543,1778321457000,-500.0,0.00013972,2]
[421907545,1778321457000,-500.0,0.00013972,2]
[421907548,1778321457000,-500.0,0.00013972,2]
[421907547,1778321457000,-1694.75,0.00013972,2]
[421907551,1778321457000,-500.0,0.00013972,2]
[421907562,1778321457000,-1139.58,0.00013972,2]
[421907552,1778321457000,-821.1,0.00013972,2]
[421907554,1778321457000,-887.55,0.00013972,2]
[421907556,1778321457000,-516.77,0.00013972,2]
[421907526,1778321457000,-500.0,0.00013917,2]
[421907549,1778321457000,-500.0,0.00013972,2]
[421907525,1778321457000,-500.0,0.00013917,2]
[421907494,1778321457000,-500.0,0.00013698,2]
[421907519,1778321457000,-456.2196437,0.00013798,2]
[421907553,1778321457000,-500.0,0.00013972,2]
[421907495,1778321457000,-500.0,0.00013698,2]
[421907497,1778321457000,-500.0,0.00013698,2]
[421907496,1778321457000,-500.0,0.00013698,2]
[421907493,1778321457000,-723.05,0.00013698,2]
[421907500,1778321457000,-600.75,0.00013698,2]
[421907498,1778321457000,-683.02,0.00013698,2]
[421907499,1778321457000,-500.0,0.00013698,2]
[421907509,1778321457000,-185.33,0.00013699,2]
[421907503,1778321457000,-500.0,0.00013698,2]
[421907506,1778321457000,-1408.46,0.00013698,2]
[421907504,1778321457000,-291.9,0.00013698,2]
[421907502,1778321457000,-1055.72,0.00013698,2]
[421907508,1778321457000,-160.0,0.00013699,2]
[421907517,1778321457000,-325.7271952,0.00013755,2]
[421907505,1778321457000,-743.93,0.00013698,2]
[421907511,1778321457000,-1000.0,0.00013699,2]
[421907510,1778321457000,-1000.0,0.00013699,2]
[421907507,1778321457000,-545.61,0.00013698,2]
[421907523,1778321457000,-500.0,0.00013917,2]
[421907513,1778321457000,-379.5034784,0.00013755,2]
[421907512,1778321457000,-845.2111131,0.0001375,2]
[421907524,1778321457000,-500.0,0.00013917,2]
[421907514,1778321457000,-151.0,0.00013755,2]
[421907521,1778321457000,-500.0,0.00013917,2]
[421907518,1778321457000,-11304.56369716,0.0001379,2]
[421907516,1778321457000,-151.0,0.00013755,2]
[421907520,1778321457000,-908.8230284,0.00013798,2]
[421907515,1778321457000,-151.0,0.00013755,2]
[421907522,1778321457000,-500.11188582,0.00013917,2]
[421907501,1778321457000,-1241.37,0.00013698,2]
[421907555,1778321457000,-500.0,0.00013972,2]
[421907611,1778321457000,-1694.75,0.00014246,2]
[421907564,1778321457000,-896.78,0.00013972,2]
[421907591,1778321457000,-176.9021,0.00014109,2]
[421907593,1778321457000,-12231.01094378,0.00014169,2]
[421907602,1778321457000,-500.0,0.00014246,2]
[421907594,1778321457000,-1305.7807,0.00014246,2]
[421907596,1778321457000,-500.0,0.00014246,2]
[421907595,1778321457000,-500.0,0.00014246,2]
[421907598,1778321457000,-841.78,0.00014246,2]
[421907597,1778321457000,-500.0,0.00014246,2]
[421907601,1778321457000,-500.0,0.00014246,2]
[421907599,1778321457000,-500.0,0.00014246,2]
[421907600,1778321457000,-706.15,0.00014246,2]
[421907605,1778321457000,-500.0,0.00014246,2]
[421907609,1778321457000,-565.25547383,0.00014246,2]
[421907610,1778321457000,-813.64,0.00014246,2]
[421907616,1778321457000,-821.1,0.00014246,2]
[421907607,1778321457000,-500.0,0.00014246,2]
[421907606,1778321457000,-826.97,0.00014246,2]
[421907617,1778321457000,-500.0,0.00014246,2]
[421907608,1778321457000,-500.0,0.00014246,2]
[421907615,1778321457000,-500.0,0.00014246,2]
[421907612,1778321457000,-500.0,0.00014246,2]
[421907613,1778321457000,-500.0,0.00014246,2]
[421907614,1778321457000,-500.0,0.00014246,2]
[421907619,1778321457000,-500.0,0.00014246,2]
[421907618,1778321457000,-887.55,0.00014246,2]
[421907620,1778321457000,-516.77,0.00014246,2]
[421907621,1778321457000,-1402.48,0.00014246,2]
[421907563,1778321457000,-500.0,0.00013972,2]
[421907622,1778321457000,-500.0,0.00014246,2]
[421907604,1778321457000,-855.46,0.00014246,2]
[421907592,1778321457000,-1000.0,0.00014137,2]
[421907623,1778321457000,-500.0,0.00014246,2]
[421907584,1778321457000,-160.0,0.00014,7]
[421907560,1778321457000,-500.0,0.00013972,2]
[421907603,1778321457000,-208.78,0.00014246,2]
[421907557,1778321457000,-1402.48,0.00013972,2]
[421907561,1778321457000,-1852.28,0.00013972,2]
[421907559,1778321457000,-500.0,0.00013972,2]
[421907565,1778321457000,-9844.3,0.00013972,2]
[421907566,1778321457000,-1112.66,0.00013972,2]
[421907577,1778321457000,-1241.37,0.00013972,2]
[421907571,1778321457000,-500.0,0.00013972,2]
[421907573,1778321457000,-500.0,0.00013972,2]
[421907570,1778321457000,-500.0,0.00013972,2]
[421907567,1778321457000,-1880.07,0.00013972,2]
[421907575,1778321457000,-500.0,0.00013972,2]
[421907569,1778321457000,-723.05,0.00013972,2]
[421907574,1778321457000,-683.02,0.00013972,2]
[421907558,1778321457000,-500.0,0.00013972,2]
[421907576,1778321457000,-600.75,0.00013972,2]
[421907572,1778321457000,-500.0,0.00013972,2]
[421907583,1778321457000,-126447.69094804,0.00014,7]
[421907589,1778321457000,-4787.873994,0.00014095,2]
[421907590,1778321457000,-375.009581,0.00014095,7]
[421907586,1778321457000,-500.0,0.00014089,2]
[421907587,1778321457000,-500.11833454,0.00014089,2]
[421907585,1778321457000,-153.2776151,0.00014,2]
[421907579,1778321457000,-500.0,0.00013972,2]
[421907581,1778321457000,-1408.46,0.00013972,2]
[421907582,1778321457000,-545.61,0.00013972,2]
[421907580,1778321457000,-743.93,0.00013972,2]
[421907578,1778321457000,-1055.72,0.00013972,2]
[421907568,1778321457000,-500.0,0.00013972,2]
[421907588,1778321457000,-3253.147702,0.00014095,7]
[421907660,1778321458000,-706.15,0.0001452,2]
[421907656,1778321458000,-500.0,0.0001452,2]
[421907657,1778321458000,-500.0,0.0001452,2]
[421907664,1778321458000,-500.0,0.0001452,2]
[421907667,1778321458000,-500.0,0.0001452,2]
[421907661,1778321458000,-500.0,0.0001452,2]
[421907662,1778321458000,-500.0,0.0001452,2]
[421907655,1778321458000,-440.71651867,0.0001452,2]
[421907668,1778321458000,-813.64,0.0001452,2]
[421907670,1778321458000,-500.0,0.0001452,2]
[421907666,1778321458000,-489.7,0.0001452,2]
[421907659,1778321458000,-500.0,0.0001452,2]
[421907669,1778321458000,-1694.75,0.0001452,2]
[421907675,1778321458000,-500.0,0.0001452,2]
[421907671,1778321458000,-500.0,0.0001452,2]
[421907672,1778321458000,-500.0,0.0001452,2]
[421907673,1778321458000,-500.0,0.0001452,2]
[421907674,1778321458000,-821.1,0.0001452,2]
[421907676,1778321458000,-887.55,0.0001452,2]
[421907679,1778321458000,-1402.48,0.0001452,2]
[421907678,1778321458000,-516.77,0.0001452,2]
[421907677,1778321458000,-500.0,0.0001452,2]
[421907682,1778321458000,-500.0,0.0001452,2]
[421907693,1778321458000,-500.0,0.0001452,2]
[421907692,1778321458000,-500.0,0.0001452,2]
[421907684,1778321458000,-1139.58,0.0001452,2]
[421907663,1778321458000,-855.46,0.0001452,2]
[421907681,1778321458000,-500.0,0.0001452,2]
[421907680,1778321458000,-500.0,0.0001452,2]
[421907665,1778321458000,-826.97,0.0001452,2]
[421907642,1778321458000,-1055.72,0.00014246,2]
[421907649,1778321458000,-1000.0,0.00014465,2]
[421907686,1778321458000,-896.78,0.0001452,2]
[421907630,1778321458000,-1112.66,0.00014246,2]
[421907629,1778321458000,-9844.3,0.00014246,2]
[421907627,1778321458000,-500.0,0.00014246,2]
[421907625,1778321458000,-1852.28,0.00014246,2]
[421907628,1778321458000,-896.78,0.00014246,2]
[421907626,1778321458000,-1139.58,0.00014246,2]
[421907624,1778321458000,-500.0,0.00014246,2]
[421907631,1778321458000,-1880.07,0.00014246,2]
[421907633,1778321458000,-723.05,0.00014246,2]
[421907635,1778321458000,-475.14,0.00014246,2]
[421907644,1778321458000,-743.93,0.00014246,2]
[421907634,1778321458000,-500.0,0.00014246,2]
[421907637,1778321458000,-500.0,0.00014246,2]
[421907639,1778321458000,-500.0,0.00014246,2]
[421907636,1778321458000,-500.0,0.00014246,2]
[421907643,1778321458000,-172.47,0.00014246,2]
[421907638,1778321458000,-683.02,0.00014246,2]
[421907632,1778321458000,-500.0,0.00014246,2]
[421907640,1778321458000,-600.75,0.00014246,2]
[421907641,1778321458000,-1241.37,0.00014246,2]
[421907646,1778321458000,-545.61,0.00014246,2]
[421907645,1778321458000,-1408.46,0.00014246,2]
[421907650,1778321458000,-1000.0,0.00014465,2]
[421907647,1778321458000,-962.877068,0.00014377,7]
[421907648,1778321458000,-352.03540352,0.00014393,2]
[421907651,1778321458000,-1000.0,0.00014465,2]
[421907653,1778321458000,-1000.0,0.00014465,2]
[421907652,1778321458000,-526.22154697,0.00014465,2]
[421907654,1778321458000,-1305.7807,0.0001452,2]
[421907687,1778321458000,-9844.3,0.0001452,2]
[421907658,1778321458000,-841.78,0.0001452,2]
[421907683,1778321458000,-1852.28,0.0001452,2]
[421907734,1778321458000,-500.0,0.00014794,2]
[421907724,1778321458000,-343.52,0.00014794,2]
[421907722,1778321458000,-500.0,0.00014794,2]
[421907726,1778321458000,-1694.75,0.00014794,2]
[421907735,1778321458000,-516.77,0.00014794,2]
[421907725,1778321458000,-813.64,0.00014794,2]
[421907727,1778321458000,-500.0,0.00014794,2]
[421907728,1778321458000,-500.0,0.00014794,2]
[421907732,1778321458000,-500.0,0.00014794,2]
[421907731,1778321458000,-821.1,0.00014794,2]
[421907729,1778321458000,-500.0,0.00014794,2]
[421907736,1778321458000,-1402.48,0.00014794,2]
[421907737,1778321458000,-583.15,0.00014794,2]
[421907746,1778321458000,-1880.07,0.00014794,2]
[421907739,1778321458000,-500.0,0.00014794,2]
[421907742,1778321458000,-500.0,0.00014794,2]
[421907747,1778321458000,-723.05,0.00014794,2]
[421907743,1778321458000,-896.78,0.00014794,2]
[421907738,1778321458000,-500.0,0.00014794,2]
[421907745,1778321458000,-1112.66,0.00014794,2]
[421907744,1778321458000,-9844.3,0.00014794,2]
[421907741,1778321458000,-1139.58,0.00014794,2]
[421907740,1778321458000,-1852.28,0.00014794,2]
[421907748,1778321458000,-426.86,0.00014794,2]
[421907752,1778321458000,-500.0,0.00014794,2]
[421907750,1778321458000,-500.0,0.00014794,2]
[421907751,1778321458000,-683.02,0.00014794,2]
[421907749,1778321458000,-500.0,0.00014794,2]
[421907694,1778321458000,-500.0,0.0001452,2]
[421907733,1778321458000,-887.55,0.00014794,2]
[421907723,1778321458000,-826.97,0.00014794,2]
[421907730,1778321458000,-500.0,0.00014794,2]
[421907721,1778321458000,-855.46,0.00014794,2]
[421907690,1778321458000,-395.6,0.0001452,2]
[421907689,1778321458000,-1880.07,0.0001452,2]
[421907685,1778321458000,-500.0,0.0001452,2]
[421907716,1778321458000,-841.78,0.00014794,2]
[421907691,1778321458000,-723.05,0.0001452,2]
[421907695,1778321458000,-683.02,0.0001452,2]
[421907696,1778321458000,-500.0,0.0001452,2]
[421907697,1778321458000,-600.75,0.0001452,2]
[421907700,1778321458000,-743.93,0.0001452,2]
[421907699,1778321458000,-1055.72,0.0001452,2]
[421907705,1778321458000,-160.0,0.00014592,2]
[421907707,1778321458000,-160.0,0.00014593,2]
[421907708,1778321458000,-325.7824685,0.00014619,2]
[421907703,1778321458000,-13291.05978458,0.00014548,2]
[421907702,1778321458000,-545.61,0.0001452,2]
[421907688,1778321458000,-1112.66,0.0001452,2]
[421907704,1778321458000,-161.5993154,0.00014592,2]
[421907698,1778321458000,-1241.37,0.0001452,2]
[421907710,1778321458000,-1500.0,0.00014685,2]
[421907714,1778321458000,-500.0,0.00014794,2]
[421907712,1778321458000,-302.0,0.00014767,3]
[421907715,1778321458000,-500.0,0.00014794,2]
[421907719,1778321458000,-500.0,0.00014794,2]
[421907711,1778321458000,-42650.38290938,0.000147,5]
[421907713,1778321458000,-1305.7807,0.00014794,2]
[421907709,1778321458000,-1000.0,0.00014637,2]
[421907718,1778321458000,-706.15,0.00014794,2]
[421907720,1778321458000,-500.0,0.00014794,2]
[421907701,1778321458000,-1408.46,0.0001452,2]
[421907717,1778321458000,-162.32,0.00014794,2]
[421907706,1778321458000,-160.0,0.00014592,2]
[421907760,1778321459000,-500.0,0.00014871,2]
[421907768,1778321459000,-9938.7223849,0.00015,2]
[421907770,1778321459000,-5769.5867822,0.00015,2]
[421907773,1778321459000,-454.96465952,0.00010848,2]
[421907776,1778321459000,-4230.4132168,0.00015,2]
[421907772,1778321459000,-1491.26083787,0.00010848,2]
[421907774,1778321459000,-1549.42430261,0.00010848,2]
[421907775,1778321459000,-2231.09,0.00011232,2]
[421907766,1778321459000,-310000.0,0.00015,15]
[421907777,1778321459000,-1500.0,0.00015013,2]
[421907771,1778321459000,-1504.3502,0.00010848,2]
[421907769,1778321459000,-401.63145824,0.00015,2]
[421907756,1778321459000,-743.93,0.00014794,2]
[421907763,1778321459000,-287.7498866,0.000149,2]
[421907765,1778321459000,-10485.97807615,0.00015,2]
[421907764,1778321459000,-287.7498866,0.000149,2]
[421907762,1778321459000,-287.7498866,0.000149,2]
[421907761,1778321459000,-1000.0,0.00014875,2]
[421907758,1778321459000,-545.61,0.00014794,2]
[421907757,1778321459000,-1408.46,0.00014794,2]
[421907755,1778321459000,-1055.72,0.00014794,2]
[421907754,1778321459000,-1241.37,0.00014794,2]
[421907753,1778321459000,-600.75,0.00014794,2]
[421907784,1778321459000,-500.0,0.00015068,2]
[421907767,1778321459000,-15000.0,0.00015,2]
[421907785,1778321459000,-841.78,0.00015068,2]
[421907759,1778321459000,-500.0,0.00014871,2]
[421907786,1778321459000,-706.15,0.00015068,2]
[421907789,1778321459000,-765.65840246,0.00015068,2]
[421907804,1778321459000,-500.0,0.00015068,2]
[421907805,1778321459000,-516.77,0.00015068,2]
[421907803,1778321459000,-887.55,0.00015068,2]
[421907798,1778321459000,-500.0,0.00015068,2]
[421907806,1778321459000,-306.86885567,0.00015068,2]
[421907800,1778321459000,-500.0,0.00015068,2]
[421907790,1778321459000,-2231.09,0.00011506,2]
[421907793,1778321459000,-826.97,0.00015068,2]
[421907797,1778321459000,-149.23167532,0.00015068,2]
[421907794,1778321459000,-813.64,0.00015068,2]
[421907792,1778321459000,-500.0,0.00015068,2]
[421907799,1778321459000,-500.0,0.00015068,2]
[421907796,1778321459000,-350.76832468,0.00015068,2]
[421907783,1778321459000,-500.0,0.00015068,2]
[421907795,1778321459000,-1694.75,0.00015068,2]
[421907787,1778321459000,-500.0,0.00015068,2]
[421907780,1778321459000,-1500.0,0.00015013,2]
[421907778,1778321459000,-181.59648784,0.00015013,2]
[421907781,1778321459000,-246.01854921,0.00015058,2]
[421907782,1778321459000,-1305.7807,0.00015068,2]
[421907779,1778321459000,-1500.0,0.00015013,2]
[421907791,1778321459000,-89.80159754,0.00015068,2]
[421907801,1778321459000,-821.1,0.00015068,2]
[421907802,1778321459000,-500.0,0.00015068,2]
[421907788,1778321459000,-413.22,0.00015068,2]
[421907822,1778321803000,264.32905755,0.0001917,120]
[421908054,1778322635000,-888.34205459,9.813e-05,2]
[421908052,1778322635000,-178.4786866,9.715e-05,2]
[421908053,1778322635000,-2439.47401242,9.813e-05,2]
[421908051,1778322635000,-2466.95269902,9.618e-05,2]
[421908062,1778322638000,-1200.0,0.0001095,2]
[421908061,1778322638000,-247.90633438,0.00010267,2]
[421908060,1778322638000,-1672.18393299,9.813e-05,2]
[421908063,1778322638000,-537.6845,0.00010951,2]
[421908065,1778322638000,-300.0,0.00010953,2]
[421908068,1778322638000,-1014.0515,0.00010958,2]
[421908066,1778322638000,-300.0,0.00010953,2]
[421908067,1778322638000,-300.0,0.00010953,2]
[421908069,1778322638000,-500.0,0.00010958,2]
[421908070,1778322638000,-294.15304203,0.00010958,2]
[421908064,1778322638000,-300.0,0.00010953,2]
[421908085,1778322640000,-105.94071623,0.00010958,2]
[421908084,1778322640000,-253.56028381,0.00010958,2]
[421908082,1778322640000,-205.84695797,0.00010958,2]
[421908083,1778322640000,-246.43971619,0.00010958,2]
[421908187,1778322646000,-500.0,0.00010958,2]
[421908191,1778322646000,-500.0,0.00010958,2]
[421908199,1778322646000,-500.0,0.00010958,2]
[421908193,1778322646000,-500.0,0.00010958,2]
[421908197,1778322646000,-500.0,0.00010958,2]
[421908195,1778322646000,-500.0,0.00010958,2]
[421908189,1778322646000,-500.0,0.00010958,2]
[421908185,1778322646000,-129.70958262,0.00010958,2]
[421908183,1778322646000,-370.29041738,0.00010958,2]
[421908174,1778322646000,-500.0,0.00010958,2]
[421908178,1778322646000,-500.0,0.00010958,2]
[421908172,1778322646000,-591.79,0.00010958,2]
[421908170,1778322646000,-500.0,0.00010958,2]
[421908180,1778322646000,-502.46437991,0.00010958,2]
[421908168,1778322646000,-269.82928377,0.00010958,2]
[421908166,1778322646000,-3171.57002832,0.00010848,2]
[421908176,1778322646000,-500.0,0.00010958,2]
[421908205,1778322646000,-370.29041738,0.00010958,2]
[421908201,1778322646000,-500.0,0.00010958,2]
[421908226,1778322646000,-500.0,0.00010958,2]
[421908203,1778322646000,-500.0,0.00010958,2]
[421908260,1778322646000,-500.0,0.00010958,2]
[421908258,1778322646000,-500.0,0.00010958,2]
[421908254,1778322646000,-500.0,0.00010958,2]
[421908252,1778322646000,-528.17,0.00010958,2]
[421908250,1778322646000,-500.0,0.00010958,2]
[421908248,1778322646000,-500.0,0.00010958,2]
[421908242,1778322646000,-3691.61,0.00010958,2]
[421908238,1778322646000,-500.0,0.00010958,2]
[421908256,1778322646000,-329.11027742,0.00010958,2]
[421908240,1778322646000,-500.0,0.00010958,2]
[421908246,1778322646000,-705.03,0.00010958,2]
[421908236,1778322646000,-500.0,0.00010958,2]
[421908234,1778322646000,-500.0,0.00010958,2]
[421908230,1778322646000,-772.62,0.00010958,2]
[421908232,1778322646000,-608.81,0.00010958,2]
[421908228,1778322646000,-500.0,0.00010958,2]
[421908244,1778322646000,-500.0,0.00010958,2]
[421908224,1778322646000,-129.70958262,0.00010958,2]
[421908278,1778322647000,-500.0,0.00010958,2]
[421908272,1778322647000,-500.0,0.00010958,2]
[421908264,1778322647000,-500.0,0.00010958,2]
[421908262,1778322647000,-500.0,0.00010958,2]
[421908270,1778322647000,-500.0,0.00010958,2]
[421908274,1778322647000,-500.0,0.00010958,2]
[421908266,1778322647000,-1952.21,0.00010958,2]
[421908276,1778322647000,-500.0,0.00010958,2]
[421908268,1778322647000,-564.92,0.00010958,2]
[421908282,1778322647000,-500.0,0.00010958,2]
[421908284,1778322647000,-500.0,0.00010958,2]
[421908286,1778322647000,-500.0,0.00010958,2]
[421908288,1778322647000,-572.22,0.00010958,2]
[421908295,1778322647000,-578.20924308,0.00011061,2]
[421908296,1778322647000,-599.60298507,0.00011116,2]
[421908293,1778322647000,-557.5788265,0.00011006,2]
[421908290,1778322647000,-242.94820769,0.00010982,2]
[421908299,1778322647000,-121.84676836,0.00011171,2]
[421908280,1778322647000,-500.0,0.00010958,2]
[421908350,1778322870000,200.95733749,0.00016677,120]
[421908387,1778323434000,167.2730537,4.61e-05,2]
[421908412,1778323832000,-605.52935036,8.864e-05,2]
[421908415,1778323832000,-976.25152329,8.864e-05,2]
[421908549,1778323838000,-300.0,9.796e-05,2]
[421908552,1778323838000,-1124.70604714,0.0001,2]
[421908548,1778323838000,-300.0,9.796e-05,2]
[421908551,1778323838000,-300.0,9.796e-05,2]
[421908546,1778323838000,-300.0,9.796e-05,2]
[421908544,1778323838000,-300.0,9.796e-05,2]
[421908545,1778323838000,-300.0,9.796e-05,2]
[421908547,1778323838000,-300.0,9.796e-05,2]
[421908542,1778323838000,-300.0,9.796e-05,2]
[421908543,1778323838000,-300.0,9.796e-05,2]
[421908553,1778323838000,-1680.0,0.0001046,2]
[421908541,1778323838000,-300.0,9.796e-05,2]
[421908536,1778323838000,-300.0,9.794e-05,2]
[421908550,1778323838000,-300.0,9.796e-05,2]
[421908533,1778323838000,-300.0,9.794e-05,2]
[421908534,1778323838000,-300.0,9.794e-05,2]
[421908539,1778323838000,-300.0,9.796e-05,2]
[421908537,1778323838000,-300.0,9.796e-05,2]
[421908538,1778323838000,-300.0,9.796e-05,2]
[421908531,1778323838000,-1200.0,9.509e-05,2]
[421908532,1778323838000,-2716.83,9.51e-05,2]
[421908540,1778323838000,-300.0,9.796e-05,2]
[421908529,1778323838000,-1498.75775195,8.954e-05,2]
[421908530,1778323838000,-247.01494635,9.181e-05,2]
[421908528,1778323838000,-885.17182537,8.864e-05,2]
[421908535,1778323838000,-300.0,9.794e-05,2]
[421908554,1778323838000,-151.5,0.00010583,2]
[421908570,1778323838000,-872.65315177,0.00010756,2]
[421908558,1778323838000,-297.2682,0.00010583,2]
[421908583,1778323838000,-500.0,0.00010756,2]
[421908582,1778323838000,-500.0,0.00010756,2]
[421908580,1778323838000,-872.65315177,0.00010756,2]
[421908581,1778323838000,-500.0,0.00010756,2]
[421908579,1778323838000,-872.65315177,0.00010756,2]
[421908574,1778323838000,-872.65315177,0.00010756,2]
[421908577,1778323838000,-872.65315177,0.00010756,2]
[421908571,1778323838000,-872.65315177,0.00010756,2]
[421908575,1778323838000,-872.65315177,0.00010756,2]
[421908576,1778323838000,-872.65315177,0.00010756,2]
[421908573,1778323838000,-872.65315177,0.00010756,2]
[421908572,1778323838000,-872.65315177,0.00010756,2]
[421908569,1778323838000,-872.65315177,0.00010756,2]
[421908556,1778323838000,-151.5,0.00010583,2]
[421908568,1778323838000,-872.65315177,0.00010756,2]
[421908555,1778323838000,-151.5,0.00010583,2]
[421908557,1778323838000,-203.99690617,0.00010583,2]
[421908564,1778323838000,-296.41975493,0.00010756,2]
[421908559,1778323838000,-531.34068697,0.00010657,2]
[421908563,1778323838000,-872.65315177,0.00010756,2]
[421908567,1778323838000,-872.65315177,0.00010756,2]
[421908565,1778323838000,-872.65315177,0.00010756,2]
[421908560,1778323838000,-5230.0,0.00010755,2]
[421908562,1778323838000,-500.0,0.00010756,2]
[421908566,1778323838000,-872.65315177,0.00010756,2]
[421908578,1778323838000,-872.65315177,0.00010756,2]
[421908561,1778323838000,-872.65315177,0.00010756,2]
[421908599,1778323839000,-500.0,0.00010756,2]
[421908600,1778323839000,-872.65315177,0.00010756,2]
[421908601,1778323839000,-500.0,0.00010756,2]
[421908597,1778323839000,-500.0,0.00010756,2]
[421908596,1778323839000,-500.0,0.00010756,2]
[421908607,1778323839000,-500.0,0.00010756,2]
[421908605,1778323839000,-500.0,0.00010756,2]
[421908608,1778323839000,-500.0,0.00010756,2]
[421908609,1778323839000,-500.0,0.00010756,2]
[421908611,1778323839000,-500.0,0.00010756,2]
[421908602,1778323839000,-598.50714421,0.00010756,2]
[421908595,1778323839000,-500.0,0.00010756,2]
[421908603,1778323839000,-500.0,0.00010756,2]
[421908594,1778323839000,-500.0,0.00010756,2]
[421908592,1778323839000,-500.0,0.00010756,2]
[421908604,1778323839000,-500.0,0.00010756,2]
[421908593,1778323839000,-500.0,0.00010756,2]
[421908612,1778323839000,-308.13459113,0.00010756,2]
[421908589,1778323839000,-500.0,0.00010756,2]
[421908590,1778323839000,-220.64673228,0.00010756,2]
[421908585,1778323839000,-500.0,0.00010756,2]
[421908587,1778323839000,-500.0,0.00010756,2]
[421908588,1778323839000,-185.58313279,0.00010756,2]
[421908584,1778323839000,-500.0,0.00010756,2]
[421908591,1778323839000,-500.0,0.00010756,2]
[421908598,1778323839000,-500.0,0.00010756,2]
[421908586,1778323839000,-500.0,0.00010756,2]
[421908617,1778323839000,-500.0,0.00010756,2]
[421908610,1778323839000,-500.0,0.00010756,2]
[421908640,1778323839000,-51955.46339231,0.00010757,2]
[421908634,1778323839000,-916.28580937,0.00010756,2]
[421908639,1778323839000,-1654235.73679679,0.00010757,2]
[421908635,1778323839000,-916.28580937,0.00010756,2]
[421908637,1778323839000,-42161.98002988,0.00010757,2]
[421908633,1778323839000,-916.28580937,0.00010756,2]
[421908636,1778323839000,-916.28580937,0.00010756,2]
[421908616,1778323839000,-500.0,0.00010756,2]
[421908638,1778323839000,-3602.28317333,0.00010757,2]
[421908631,1778323839000,-916.28580937,0.00010756,2]
[421908621,1778323839000,-500.0,0.00010756,2]
[421908628,1778323839000,-916.28580937,0.00010756,2]
[421908623,1778323839000,-500.0,0.00010756,2]
[421908632,1778323839000,-916.28580937,0.00010756,2]
[421908620,1778323839000,-398.01966018,0.00010756,2]
[421908624,1778323839000,-500.0,0.00010756,2]
[421908606,1778323839000,-500.0,0.00010756,2]
[421908614,1778323839000,-635.90647017,0.00010756,2]
[421908615,1778323839000,-500.0,0.00010756,2]
[421908613,1778323839000,-191.86540887,0.00010756,2]
[421908619,1778323839000,-500.0,0.00010756,2]
[421908618,1778323839000,-500.0,0.00010756,2]
[421908622,1778323839000,-500.0,0.00010756,2]
[421908629,1778323839000,-916.28580937,0.00010756,2]
[421908630,1778323839000,-916.28580937,0.00010756,2]
[421908626,1778323839000,-500.0,0.00010756,2]
[421908625,1778323839000,-500.0,0.00010756,2]
[421908627,1778323839000,-500.0,0.00010756,2]
[421908648,1778323843000,-9612.6594506,0.00010757,2]
[421908650,1778323843000,-2682.75126377,0.00010757,2]
[421908649,1778323843000,-1335.28898699,0.00010757,2]
[421908647,1778323843000,-286925.21669354,0.00010757,2]
[421908652,1778323844000,-401.29560279,0.00010757,2]